fUST/lending_fUST_20251215
["ID","MTS","AMOUNT","RATE_DAILY","PERIOD"]
[398515110,1765773565184,-405.02259724,0.0001036,2]
[398515111,1765773568057,-247.28740276,0.0001036,2]
[398515112,1765773570167,-159.73260266,0.0001036,2]
[398515113,1765773573494,-3021.27959676,0.0001036,2]
[398515114,1765773574006,-364.53388496,0.00010465,2]
[398515115,1765773576253,-3808.15271538,0.00010465,2]
[398515116,1765773576286,-50.68018133,0.0001057,2]
[398515117,1765773576318,-393.72,0.00010891,2]
[398515118,1765773576350,-154.06,0.000111,2]
[398515119,1765773576380,-154.06,0.000113,2]
[398515120,1765773576412,-154.06,0.000114,2]
[398515121,1765773576443,-120.57420658,0.00011531,2]
[398515122,1765773579080,-154.06,0.000116,2]
[398515123,1765773579112,-154.06,0.000117,2]
[398515124,1765773579143,-154.06,0.000119,2]
[398515125,1765773579174,-300.0,0.00011957,2]
[398515126,1765773592468,150.0,7.04e-05,2]
[398515127,1765773592869,150.0,7.68e-05,2]
[398515128,1765773593288,150.0,8.32e-05,2]
[398515129,1765773593687,165.2,8.96e-05,2]
[398515130,1765773594093,206.49,9.6e-05,2]
[398515131,1765773596306,-220.18402751,0.0001024,2]
[398515132,1765773621796,-27.60597249,0.0001024,2]
[398515133,1765773621825,-563.0,0.0001024,2]
[398515134,1765773621857,-289.09,0.00010881,2]
[398515135,1765773621888,-154.61,0.000111,2]
[398515136,1765773621917,-154.61,0.000113,2]
[398515137,1765773621947,-154.61,0.000114,2]
[398515138,1765773621980,-330.39,0.00011521,2]
[398515139,1765773622011,-154.61,0.000116,2]
[398515140,1765773622043,-154.61,0.000118,2]
[398515141,1765773622074,-1033.73805502,0.00011838,2]
[398515142,1765773622225,-3966.26194498,0.00011838,2]
[398515143,1765773622255,-300.0,0.00011957,2]
[398515144,1765773622290,-227.0,0.00011957,2]
[398515145,1765773622320,-191.0,0.00011957,2]
[398515146,1765773631100,-6069.83611004,0.00011958,2]
[398515147,1765773631250,-4931.64568016,0.00011958,2]
[398515148,1765773631312,-136.71863968,0.00012,2]
[398515149,1765773635128,-5000.0,0.00011838,2]
[398515150,1765773635173,-0.01,0.00012,2]
[398515151,1765773635320,-17.88136032,0.00012,2]
[398515152,1765773635356,-154.61,0.000121,2]
[398515153,1765773635392,-371.69,0.00012161,2]
[398515154,1765773635426,-300.0,0.00012196,2]
[398515155,1765773635459,-300.0,0.00012196,2]
[398515156,1765773635491,-300.0,0.00012196,2]
[398515157,1765773635526,-300.0,0.00012196,2]
[398515158,1765773635559,-300.0,0.00012196,2]
[398515159,1765773635592,-300.0,0.00012196,2]
[398515160,1765773635624,-300.0,0.00012196,2]
[398515161,1765773635656,-300.0,0.00012196,2]
[398515162,1765773635687,-300.0,0.00012196,2]
[398515163,1765773635720,-300.0,0.00012196,2]
[398515164,1765773635752,-300.0,0.00012196,2]
[398515165,1765773635787,-300.0,0.00012196,2]
[398515166,1765773635820,-300.0,0.00012196,2]
[398515167,1765773635850,-300.0,0.00012196,2]
[398515168,1765773635881,-211.64727936,0.00012196,2]
[398515169,1765773636249,-88.35272064,0.00012196,2]
[398515170,1765773639802,-154.61,0.000123,2]
[398515171,1765773639832,-600.0,0.00012439,2]
[398515172,1765773639862,-154.61,0.000125,2]
[398515173,1765773639891,-223.30838698,0.00012571,2]
[398515174,1765773639920,-154.61,0.000126,2]
[398515175,1765773639948,-467.76372524,0.00012765,2]
[398515176,1765773639985,-154.61,0.000128,2]
[398515177,1765773640017,-412.99,0.00012801,2]
[398515178,1765773640044,-1755.0,0.00013,2]
[398515179,1765773640074,-154.61,0.00013,2]
[398515180,1765773640987,1535.78577556,0.00012177,2]
[398515181,1765773641010,3464.21422444,0.00012177,2]
[398515182,1765773650152,-4628.15939353,0.00013173,2]
[398515183,1765773650186,-154.61,0.000132,2]
[398515184,1765773650333,-467.76372524,0.00013268,2]
[398515185,1765773656173,5000.0,0.00013268,2]
[398515186,1765773664027,4064.48254952,0.00013268,2]
[398515187,1765773664051,935.51745048,0.00013268,2]
[398515188,1765773664083,150.0,7.136e-05,2]
[398515189,1765773664476,223.37,7.785e-05,2]
[398515190,1765773664891,335.06,8.433e-05,2]
[398515191,1765773665385,446.74,9.082e-05,2]
[398515192,1765773665445,159.83,0.000111,2]
[398515193,1765773665723,159.83,0.000118,2]
[398515194,1765773666057,558.43,9.731e-05,2]
[398515195,1765773666184,159.83,0.000126,2]
[398515196,1765773666216,670.12,0.0001038,2]
[398515197,1765773666550,781.8,0.00011028,2]
[398515198,1765773666977,893.49,0.00011677,2]
[398515199,1765773668561,1005.18,0.00012326,2]
[398515200,1765773668984,1116.86,0.00012975,2]
[398515201,1765773724713,158.55,0.000111,2]
[398515202,1765773725054,158.55,0.000118,2]
[398515203,1765773725310,158.55,0.000126,2]
[398515204,1765773754828,150.0,7.836e-05,2]
[398515205,1765773755231,150.0,8.548e-05,2]
[398515206,1765773755672,150.0,9.26e-05,2]
[398515207,1765773756040,150.0,9.973e-05,2]
[398515208,1765773756435,165.09,0.00010685,2]
[398515209,1765773757189,198.11,0.00011397,2]
[398515210,1765773757374,231.13,0.0001211,2]
[398515211,1765773771618,-264.15,0.00012822,2]
[398515212,1765773772862,5000.0,0.00012765,2]
[398515213,1765773785736,158.55,0.000111,2]
[398515214,1765773785765,150.0,5.2e-07,2]
[398515215,1765773786750,150.0,5.2e-07,2]
[398515216,1765773787779,150.0,5.2e-07,2]
[398515217,1765773827307,150.0,7.167e-05,2]
[398515218,1765773827722,150.0,7.818e-05,2]
[398515219,1765773828151,150.0,8.47e-05,2]
[398515220,1765773828557,150.0,9.121e-05,2]
[398515221,1765773829093,163.6,9.773e-05,2]
[398515222,1765773829457,196.32,0.00010424,2]
[398515223,1765773830118,229.05,0.00011076,2]
[398515224,1765773830267,261.77,0.00011727,2]
[398515225,1765773830672,294.49,0.00012379,2]
[398515227,1765773873426,5000.0,0.00013,2]
[398515228,1765773896454,5000.0,0.00013,2]
[398515229,1765773898122,0.01,7.762e-05,2]
[398515230,1765773898151,149.99,7.762e-05,2]
[398515231,1765773898522,150.0,8.467e-05,2]
[398515232,1765773898915,150.0,9.173e-05,2]
[398515233,1765773899343,150.0,9.878e-05,2]
[398515234,1765773899741,150.0,0.00010584,2]
[398515235,1765773900147,155.38,0.0001129,2]
[398515236,1765773900536,181.27,0.00011995,2]
[398515237,1765773900954,207.17,0.00012701,2]
[398515238,1765773902207,158.13,0.000111,2]
[398515239,1765773904058,5000.0,0.00013031,2]
[398515240,1765773915063,3998.06,0.00012717,2]
[398515241,1765773915085,10000.01,0.00012717,2]
[398515242,1765773915108,1453.1676147,0.00012717,2]
[398515245,1765773919802,5000.0,0.00013031,2]
[398515247,1765773927517,3546.8423853,0.00013031,2]
[398515248,1765773927540,1453.1576147,0.00013031,2]
[398515252,1765773931468,172.258759,0.00012819,2]
[398515253,1765773935673,5000.0,0.00013031,2]
[398515255,1765773944969,3374.5936263,0.00013031,2]
[398515256,1765773944992,1625.4063737,0.00013031,2]
[398515257,1765773953464,5000.0,0.00013031,2]
[398515258,1765773962199,153.21,0.00012,2]
[398515259,1765773962491,153.21,0.000122,2]
[398515260,1765773962848,153.21,0.000124,2]
[398515261,1765773963123,153.21,0.000126,2]
[398515262,1765773963483,153.21,0.000128,2]
[398515263,1765773964002,153.21,0.00013,2]
[398515264,1765773968220,150.0,7.81e-05,2]
[398515265,1765773968663,2305.3436263,0.00013031,2]
[398515266,1765773968687,2694.6563737,0.00013031,2]
[398515267,1765773968724,150.0,8.52e-05,2]
[398515268,1765773969040,150.51,9.23e-05,2]
[398515269,1765773969453,200.68,9.94e-05,2]
[398515270,1765773969884,250.84,0.0001065,2]
[398515271,1765773970547,301.01,0.0001136,2]
[398515272,1765773970752,351.18,0.00012071,2]
[398515273,1765773971239,401.35,0.00012781,2]
[398515274,1765773976912,4386.2560832,0.00013031,2]
[398515275,1765773992377,1113.5275431,0.00013031,2]
[398515276,1765773992406,3886.4724569,0.00013031,2]
[398515277,1765774014822,5000.0,0.00013031,2]
[398515278,1765774026028,177.08,0.00012,2]
[398515279,1765774026387,177.08,0.000125,2]
[398515280,1765774026762,177.08,0.00013,2]
[398515281,1765774038243,582.2975431,0.00013031,2]
[398515282,1765774038267,4417.7024569,0.00013031,2]
[398515283,1765774041844,150.0,7.104e-05,2]
[398515284,1765774042412,150.0,7.75e-05,2]
[398515285,1765774042801,150.0,8.396e-05,2]
[398515286,1765774043429,150.0,9.042e-05,2]
[398515287,1765774043835,150.0,9.687e-05,2]
[398515288,1765774044233,151.68,0.00010333,2]
[398515289,1765774044640,176.96,0.00010979,2]
[398515290,1765774045031,202.24,0.00011625,2]
[398515291,1765774045429,227.52,0.00012271,2]
[398515292,1765774045879,252.8,0.00012917,2]
[398515293,1765774060587,3821.1075431,0.00013031,2]
[398515294,1765774060610,1178.8924569,0.00013031,2]
[398515295,1765774083156,5000.0,0.00013031,2]
[398515296,1765774083830,177.08,0.00012,2]
[398515297,1765774092668,150.0,5.2e-07,2]
[398515298,1765774093722,150.0,5.2e-07,2]
[398515299,1765774095026,150.0,5.2e-07,2]
[398515300,1765774095788,150.0,5.2e-07,2]
[398515301,1765774097155,150.0,5.2e-07,2]
[398515302,1765774105916,2894.0375431,0.00013031,2]
[398515303,1765774105941,2105.9624569,0.00013031,2]
[398515304,1765774110220,150.0,7.096e-05,2]
[398515305,1765774129521,5000.0,0.00013031,2]
[398515306,1765774151955,2744.0475431,0.00013031,2]
[398515307,1765774151978,2255.9524569,0.00013031,2]
[398515308,1765774159768,1265.15342868,0.00013031,2]
[398515309,1765774168437,5000.0,0.00013031,2]
[398515310,1765774174454,150.0,7.815e-05,2]
[398515311,1765774174711,150.0,8.526e-05,2]
[398515312,1765774176722,1178.90411442,0.00013031,2]
[398515313,1765774176744,3821.09588558,0.00013031,2]
[398515314,1765774186445,5000.0,0.00013031,2]
[398515315,1765774201867,1178.91411442,0.00013031,2]
[398515316,1765774201909,3821.08588558,0.00013031,2]
[398515317,1765774207796,493.7627524,0.00012678,2]
[398515318,1765774209635,2953.20639582,0.00013031,2]
[398515341,1765774232372,-396.61953506,0.00013044,2]
[398515343,1765774232383,-4603.38046494,0.00013044,2]
[398515345,1765774232393,-551.11953506,0.00013176,2]
[398515347,1765774232405,-55.88046494,0.00013176,2]
[398515349,1765774232414,-180.99334009,0.00013177,2]
[398515351,1765774232423,-632.68226477,0.00013268,2]
[398515353,1765774232433,-367.31773523,0.00013268,2]
[398515355,1765774232443,-260.10092912,0.00013268,2]
[398515357,1765774232452,-405.86564497,0.00013269,2]
[398515359,1765774232462,-296.43468146,0.00013269,2]
[398515361,1765774232471,-500.0,0.00013269,2]
[398515363,1765774232480,-500.0,0.00013269,2]
[398515365,1765774232493,-500.0,0.00013269,2]
[398515367,1765774232503,-500.0,0.00013269,2]
[398515369,1765774232512,-500.0,0.00013269,2]
[398515371,1765774232521,-500.0,0.00013269,2]
[398515373,1765774232531,-500.0,0.00013269,2]
[398515375,1765774232540,-300.0,0.0001327,2]
[398515377,1765774232549,-300.0,0.0001327,2]
[398515379,1765774232559,-190.0,0.0001327,2]
[398515381,1765774232568,-1200.0,0.0001327,2]
[398515383,1765774232577,-300.0,0.00013271,2]
[398515385,1765774232586,-1200.0,0.00013271,2]
[398515387,1765774232595,-500.0,0.00013273,2]
[398515389,1765774232605,-500.0,0.00013273,2]
[398515391,1765774232614,-500.01,0.00013273,2]
[398515393,1765774232623,-500.0,0.00013273,2]
[398515395,1765774232632,-500.0,0.00013273,2]
[398515397,1765774232641,-500.0,0.00013273,2]
[398515399,1765774232650,-500.0,0.00013273,2]
[398515401,1765774232659,-500.0,0.00013273,2]
[398515403,1765774232668,-500.0,0.00013273,2]
[398515405,1765774232677,-500.0,0.00013273,2]
[398515407,1765774232686,-500.0,0.00013273,2]
[398515409,1765774232695,-500.0,0.00013273,2]
[398515411,1765774232705,-500.0,0.00013273,2]
[398515413,1765774232714,-378.90223578,0.00013273,2]
[398515415,1765774232723,-500.0,0.00013273,2]
[398515417,1765774232732,-406.01072653,0.00013273,2]
[398515419,1765774232741,-300.0,0.00013537,2]
[398515421,1765774232750,-300.0,0.00013537,2]
[398515423,1765774232759,-300.0,0.00013537,2]
[398515425,1765774232768,-300.0,0.00013537,2]
[398515427,1765774232777,-300.0,0.00013537,2]
[398515429,1765774232786,-300.0,0.00013537,2]
[398515431,1765774232795,-300.0,0.00013537,2]
[398515433,1765774232804,-66.36248942,0.00013537,2]
[398515438,1765774232838,-356.90616913,0.00013269,2]
[398515440,1765774232849,-53.12093706,0.00013269,2]
[398515442,1765774232858,-471.94663568,0.00013269,2]
[398515539,1765774238419,-1468.40543659,0.00012914,2]
[398515540,1765774238510,12.73294659,7.811e-05,2]
[398515541,1765774238539,137.26705341,7.811e-05,2]
[398515542,1765774238551,-677.42648617,0.00012914,2]
[398515543,1765774238573,-1340.016455,0.00012914,2]
[398515544,1765774238792,150.0,8.521e-05,2]
[398515549,1765774240722,-0.0058838,9.231e-05,2]
[398515550,1765774241593,-185.6041162,9.231e-05,2]
[398515551,1765774241619,-247.48,9.941e-05,2]
[398515552,1765774241645,-82.53837196,0.00010651,2]
[398515559,1765774243427,-226.81162804,0.00010651,2]
[398515560,1765774243436,-371.22,0.00011361,2]
[398515561,1765774243445,-433.09,0.00012071,2]
[398515562,1765774243454,-494.96,0.00012782,2]
[398515563,1765774243463,-1514.15162224,0.00012914,2]
[398515564,1765774243472,-28.05336432,0.00013269,2]
[398515565,1765774243481,-500.0,0.00013269,2]
[398515566,1765774243493,-500.0,0.00013269,2]
[398515567,1765774243502,-646.33303568,0.00013269,2]
[398515568,1765774243511,-500.0,0.00013269,2]
[398515569,1765774243519,-500.0,0.00013269,2]
[398515570,1765774243528,-500.0,0.00013269,2]
[398515571,1765774243537,-500.0,0.00013269,2]
[398515572,1765774243546,-184.72091953,0.00013269,2]
[398515573,1765774243555,-556.83,0.00013492,2]
[398515574,1765774243564,-233.63751058,0.00013537,2]
[398515575,1765774243573,-300.0,0.00013537,2]
[398515576,1765774243582,-300.0,0.00013537,2]
[398515577,1765774243591,-300.0,0.00013537,2]
[398515578,1765774243599,-300.0,0.00013537,2]
[398515579,1765774243608,-300.0,0.00013537,2]
[398515580,1765774243617,-300.0,0.00013537,2]
[398515581,1765774243626,-300.0,0.00013537,2]
[398515582,1765774243634,-633.46,0.00013698,2]
[398515583,1765774243643,-633.46,0.00013698,2]
[398515584,1765774243652,-633.46,0.00013698,2]
[398515585,1765774243661,-325.97353928,0.00013732,2]
[398515586,1765774243670,-2472.46625095,0.00013733,2]
[398515587,1765774243679,-467.76372524,0.0001377,2]
[398515588,1765774243688,-600.0,0.00013807,2]
[398515589,1765774243697,-1162.99581557,0.00013811,2]
[398515590,1765774243706,-745.29663388,0.00013821,2]
[398515591,1765774243716,-500.0,0.00013821,2]
[398515592,1765774243726,-1000.0,0.00013821,2]
[398515593,1765774243735,-499.03803783,0.00013821,2]
[398515594,1765774243745,-501.897446,0.00013821,2]
[398515595,1765774243755,-501.62943547,0.00013821,2]
[398515596,1765774243766,-501.25982478,0.00013821,2]
[398515597,1765774243775,-1000.0,0.00013821,2]
[398515598,1765774243785,-1882.68935252,0.0001392,2]
[398515599,1765774243797,-311.0,0.0001392,2]
[398515600,1765774243823,-15515.51131837,0.0001392,2]
[398515627,1765774246361,-365.46530646,0.0001392,2]
[398515636,1765774246439,-1868.37742332,0.0001392,2]
[398515638,1765774246450,-871.85190565,0.0001392,2]
[398515936,1765774314139,150.0,7.794e-05,2]
[398515937,1765774314238,150.0,8.502e-05,2]
[398515938,1765774316012,-196.43,9.211e-05,2]
[398515939,1765774316034,-185.91168784,9.919e-05,2]
[398515940,1765774318220,-75.99831216,9.919e-05,2]
[398515941,1765774318246,-290.94257433,0.00010628,2]
[398515944,1765774351802,-36.43742567,0.00010628,2]
[398515945,1765774351835,-392.86,0.00011336,2]
[398515946,1765774351868,-458.34,0.00012045,2]
[398515947,1765774351899,-523.81,0.00012753,2]
[398515948,1765774388458,150.0,7.082e-05,2]
[398515949,1765774388910,150.0,7.726e-05,2]
[398515950,1765774389327,150.0,8.369e-05,2]
[398515951,1765774389718,178.3,9.013e-05,2]
[398515952,1765774390133,222.88,9.657e-05,2]
[398515953,1765774390557,267.46,0.00010301,2]
[398515954,1765774390949,312.03,0.00010945,2]
[398515955,1765774391360,356.61,0.00011588,2]
[398515956,1765774391760,401.18,0.00012232,2]
[398515957,1765774392168,445.76,0.00012876,2]
[398515958,1765774450789,-5000.0,0.00013136,2]
[398515959,1765774460151,150.0,7.088e-05,2]
[398515960,1765774460373,-515.61660439,0.00013269,2]
[398515961,1765774460998,150.0,7.733e-05,2]
[398515962,1765774461726,150.0,8.377e-05,2]
[398515963,1765774462090,150.0,9.022e-05,2]
[398515964,1765774462378,150.0,9.666e-05,2]
[398515965,1765774462761,166.89,0.0001031,2]
[398515966,1765774463165,194.7,0.00010955,2]
[398515967,1765774463573,222.52,0.00011599,2]
[398515968,1765774464063,250.33,0.00012243,2]
[398515969,1765774464453,278.15,0.00012888,2]
[398515970,1765774464870,5000.0,0.00013271,2]
[398515972,1765774530776,150.0,8.401e-05,2]
[398515973,1765774541139,-150.0,9.164e-05,2]
[398515974,1765774541163,-38.18520846,9.928e-05,2]
[398515975,1765774598354,150.0,7.069e-05,2]
[398515976,1765774598754,150.0,7.711e-05,2]
[398515977,1765774599154,150.0,8.354e-05,2]
[398515979,1765774882428,-5000.0,0.00010879,2]
[398515980,1765774882856,-5000.0,0.00010989,2]
[398515981,1765774889238,-161.25,0.000111,2]
[398515982,1765774889270,-183.73353402,0.0001125,2]
[398515983,1765774889300,-578.0,0.0001125,2]
[398515984,1765774889333,-300.0,0.00011321,2]
[398515985,1765774889364,-300.0,0.00011321,2]
[398515986,1765774889394,-300.0,0.00011321,2]
[398515987,1765774889426,-300.0,0.00011321,2]
[398515988,1765774889456,-300.0,0.00011321,2]
[398515989,1765774889487,-300.0,0.00011321,2]
[398515990,1765774889519,-300.0,0.00011321,2]
[398515991,1765774889550,-300.0,0.00011321,2]
[398515992,1765774889581,-300.0,0.00011321,2]
[398515993,1765774889614,-300.0,0.00011321,2]
[398515994,1765774889645,-300.0,0.00011321,2]
[398515995,1765774889677,-300.0,0.00011321,2]
[398515996,1765774889707,-300.0,0.00011321,2]
[398515997,1765774889737,-54.04293196,0.00011321,2]
[398515998,1765774892538,-245.95706804,0.00011321,2]
[398515999,1765774892571,-300.0,0.00011321,2]
[398516000,1765774892603,-161.25,0.000114,2]
[398516001,1765774892635,-600.0,0.00011546,2]
[398516002,1765774892667,-161.25,0.000116,2]
[398516003,1765774892700,-161.25,0.000119,2]
[398516004,1765774892731,-161.25,0.000122,2]
[398516005,1765774892762,-161.25,0.000124,2]
[398516006,1765774892793,-161.25,0.000127,2]
[398516007,1765774892821,-937.47366659,0.000127,2]
[398516008,1765774892852,-720.0,0.00012701,2]
[398516009,1765774892886,-300.0,0.00012749,2]
[398516010,1765774892915,-500.0,0.00012876,2]
[398516011,1765774892946,-358.14853074,0.00012876,2]
[398516012,1765774893130,-141.85146926,0.00012876,2]
[398516013,1765774893163,-500.0,0.00012876,2]
[398516014,1765774893195,-156.66967847,0.00012876,2]
[398516015,1765774893225,-500.0,0.00012876,2]
[398516016,1765774893258,-500.0,0.00012876,2]
[398516017,1765774893293,-500.0,0.00012876,2]
[398516018,1765774893326,-500.0,0.00012876,2]
[398516019,1765774893357,-454.61073366,0.00012876,2]
[398516020,1765774893390,-500.0,0.00012876,2]
[398516021,1765774893423,-326.66898619,0.00012876,2]
[398516022,1765774893456,-500.0,0.00012876,2]
[398516023,1765774893488,-340.40826484,0.00012876,2]
[398516024,1765774899226,-5000.0,0.00012747,2]
[398516025,1765774903438,-159.59173516,0.00012876,2]
[398516026,1765774903473,-500.0,0.00012876,2]
[398516027,1765774903502,-488.66783995,0.00012876,2]
[398516028,1765774903531,-500.0,0.00012876,2]
[398516029,1765774903560,-500.0,0.00012876,2]
[398516030,1765774903591,-500.0,0.00012876,2]
[398516031,1765774903621,-500.0,0.00012876,2]
[398516032,1765774903651,-500.0,0.00012876,2]
[398516033,1765774903680,-500.0,0.00012876,2]
[398516034,1765774903709,-500.0,0.00012876,2]
[398516035,1765774903738,-262.53800256,0.00012876,2]
[398516036,1765774903975,-178.41484466,0.00012876,2]
[398516037,1765774904004,-500.0,0.00012876,2]
[398516038,1765774904036,-500.0,0.00012876,2]
[398516039,1765774904068,-500.0,0.00012876,2]
[398516040,1765774904098,-500.0,0.00012876,2]
[398516041,1765774904129,-500.0,0.00012876,2]
[398516042,1765774904159,-500.0,0.00012876,2]
[398516043,1765774904189,-1200.0,0.00012877,2]
[398516044,1765774904570,1243.18031068,0.00012747,2]
[398516045,1765774907258,-3756.81968932,0.00012747,2]
[398516046,1765774912594,1073.79771525,0.00012879,2]
[398516047,1765774918539,150.0,7.785e-05,2]
[398516048,1765774918933,154.1,8.493e-05,2]
[398516049,1765774919353,231.14,9.2e-05,2]
[398516050,1765774919768,308.19,9.908e-05,2]
[398516051,1765774920191,385.24,0.00010616,2]
[398516052,1765774920598,183.90290611,0.00011324,2]
[398516053,1765774920624,278.38709389,0.00011324,2]
[398516054,1765774920978,5000.0,0.00012879,2]
[398516055,1765774921047,539.33,0.00012031,2]
[398516056,1765774921441,616.38,0.00012739,2]
[398516057,1765774925113,153.78,0.000111,2]
[398516058,1765774925412,153.78,0.000112,2]
[398516059,1765774925772,153.78,0.000113,2]
[398516060,1765774926143,153.78,0.000114,2]
[398516061,1765774926420,153.78,0.000116,2]
[398516062,1765774926718,153.78,0.000117,2]
[398516063,1765774927053,153.78,0.000118,2]
[398516064,1765774927336,153.78,0.000119,2]
[398516065,1765774927663,153.78,0.00012,2]
[398516066,1765774927944,153.78,0.000121,2]
[398516067,1765774928821,153.78,0.000123,2]
[398516068,1765774928990,153.78,0.000124,2]
[398516069,1765774929053,153.78,0.000125,2]
[398516070,1765774929202,153.78,0.000126,2]
[398516071,1765774929481,153.78,0.000127,2]
[398516072,1765774929823,153.78,0.000128,2]
[398516073,1765774945111,1105.43290611,0.00012879,2]
[398516074,1765774945136,3894.56709389,0.00012879,2]
[398516075,1765774967181,5000.0,0.00012879,2]
[398516076,1765774987207,152.4,0.000111,2]
[398516077,1765774987659,152.4,0.000112,2]
[398516078,1765774988004,152.4,0.000113,2]
[398516079,1765774988534,152.4,0.000114,2]
[398516080,1765774988993,152.4,0.000115,2]
[398516081,1765774989288,343.44290611,0.00012879,2]
[398516082,1765774989315,4656.55709389,0.00012879,2]
[398516083,1765774989446,152.4,0.000116,2]
[398516084,1765774989820,152.4,0.000117,2]
[398516085,1765774990158,152.4,0.000118,2]
[398516086,1765774990777,152.4,0.000119,2]
[398516087,1765774991763,152.4,0.00012,2]
[398516088,1765774991846,152.4,0.000121,2]
[398516089,1765774991943,152.4,0.000122,2]
[398516090,1765774992087,152.4,0.000123,2]
[398516091,1765774992443,152.4,0.000125,2]
[398516092,1765774992784,152.4,0.000126,2]
[398516093,1765774993064,152.4,0.000127,2]
[398516094,1765774993446,152.4,0.000128,2]
[398516095,1765774999697,150.0,7.132e-05,2]
[398516096,1765775000097,150.0,7.781e-05,2]
[398516097,1765775000532,207.2,8.429e-05,2]
[398516098,1765775000978,276.27,9.078e-05,2]
[398516099,1765775001402,345.34,9.726e-05,2]
[398516100,1765775002152,414.41,0.00010374,2]
[398516101,1765775002572,483.47,0.00011023,2]
[398516102,1765775002681,552.54,0.00011671,2]
[398516103,1765775003044,621.61,0.0001232,2]
[398516104,1765775011431,313.81290611,0.00012879,2]
[398516105,1765775011456,4686.18709389,0.00012879,2]
[398516106,1765775034056,5000.0,0.00012879,2]
[398516107,1765775046868,153.33,0.000111,2]
[398516108,1765775047794,153.33,0.000113,2]
[398516109,1765775048195,7.16290611,0.000114,2]
[398516110,1765775048224,146.16709389,0.000114,2]
[398516111,1765775048474,153.33,0.000116,2]
[398516112,1765775048806,153.33,0.000117,2]
[398516113,1765775049322,153.33,0.000119,2]
[398516114,1765775049732,153.33,0.00012,2]
[398516115,1765775050234,153.33,0.000122,2]
[398516116,1765775050436,153.33,0.000123,2]
[398516117,1765775050752,153.33,0.000125,2]
[398516118,1765775051076,153.33,0.000126,2]
[398516119,1765775051367,153.33,0.000128,2]
[398516120,1765775056550,5000.0,0.00012879,2]
[398516123,1765775076070,150.0,8.392e-05,2]
[398516124,1765775076506,150.0,9.155e-05,2]
[398516127,1765775087353,208.74,9.918e-05,2]
[398516128,1765775087853,278.32,0.00010681,2]
[398516129,1765775096822,-188.19471004,0.00011444,2]
[398516130,1765775098780,-155.53,0.00011444,2]
[398516131,1765775107057,153.5,0.000111,2]
[398516132,1765775119029,-153.5,0.000114,2]
[398516133,1765775119049,-184.28048089,0.00011422,2]
[398516134,1765775119076,-4.17528996,0.00011444,2]
[398516135,1765775119100,-7.30816952,0.000117,2]
[398516143,1765775164523,150.0,8.403e-05,2]
[398516144,1765775164912,150.0,9.167e-05,2]